Department Family,Date Paid,Expense Type,Expense Area,Supplier,Transaction Number,Amount,Vat Inclusive
Crown Prosecution Service ,04/01/23,Crown Court Graduated Fee Scheme,North East Crown Court Unit,Fountain Chambers,120437,"27,030.30",Y
Crown Prosecution Service ,04/01/23,FCO platform charges excluding leases,Intl External Funding,"Foreign, Commonwealth and Development Office",20002510,"9,100.00",
Crown Prosecution Service ,04/01/23,FCO platform charges excluding leases,Intl Liaison Prosecutors,"Foreign, Commonwealth and Development Office",20002510,"11,775.00",
Crown Prosecution Service ,04/01/23,FCO platform charges excluding leases,Intl External Funding,"Foreign, Commonwealth and Development Office",20002510,"9,200.00",
Crown Prosecution Service ,04/01/23,Overseas Residential accommodation,Intl External Funding,"Foreign, Commonwealth and Development Office",20002510,"4,900.25",
Crown Prosecution Service ,04/01/23,FCO platform charges excluding leases,Intl Internal Funding,"Foreign, Commonwealth and Development Office",20002510,"48,763.25",
Crown Prosecution Service ,04/01/23,FCO platform charges excluding leases,Intl External Funding,"Foreign, Commonwealth and Development Office",20002510,"10,350.00",
Crown Prosecution Service ,04/01/23,FCO platform charges excluding leases,Intl Liaison Prosecutors,"Foreign, Commonwealth and Development Office",20002510,130.50,
Crown Prosecution Service ,04/01/23,Overseas Residential accommodation,Intl External Funding,"Foreign, Commonwealth and Development Office",20002510,"4,890.75",
Crown Prosecution Service ,04/01/23,Overseas Residential accommodation,Intl Liaison Prosecutors,"Foreign, Commonwealth and Development Office",20002510,"6,700.00",
Crown Prosecution Service ,04/01/23,FCO platform charges excluding leases,Intl External Funding,"Foreign, Commonwealth and Development Office",20002510,"5,625.00",
Crown Prosecution Service ,04/01/23,FCO platform charges excluding leases,Intl Liaison Prosecutors,"Foreign, Commonwealth and Development Office",20002510,"6,000.00",
Crown Prosecution Service ,04/01/23,Overseas Residential accommodation,Intl Liaison Prosecutors,"Foreign, Commonwealth and Development Office",20002510,"4,934.75",
Crown Prosecution Service ,04/01/23,FCO platform charges excluding leases,Intl Liaison Prosecutors,"Foreign, Commonwealth and Development Office",20002510,969.00,
Crown Prosecution Service ,04/01/23,Overseas Residential accommodation,Intl Liaison Prosecutors,"Foreign, Commonwealth and Development Office",20002510,"13,725.00",
Crown Prosecution Service ,04/01/23,FCO platform charges excluding leases,Intl External Funding,"Foreign, Commonwealth and Development Office",20002510,"6,888.50",
Crown Prosecution Service ,04/01/23,Overseas Residential accommodation,Intl External Funding,"Foreign, Commonwealth and Development Office",20002510,"7,125.00",
Crown Prosecution Service ,04/01/23,FCO platform charges excluding leases,Intl Liaison Prosecutors,"Foreign, Commonwealth and Development Office",20002510,"20,246.50",
Crown Prosecution Service ,04/01/23,FCO platform charges excluding leases,Intl External Funding,"Foreign, Commonwealth and Development Office",20002510,"9,750.00",
Crown Prosecution Service ,04/01/23,FCO platform charges excluding leases,Intl Liaison Prosecutors,"Foreign, Commonwealth and Development Office",20002510,"14,400.00",
Crown Prosecution Service ,04/01/23,Overseas Residential accommodation,Intl External Funding,"Foreign, Commonwealth and Development Office",20002510,"4,907.75",
Crown Prosecution Service ,04/01/23,Overseas Residential accommodation,Intl External Funding,"Foreign, Commonwealth and Development Office",20002510,"4,800.00",
Crown Prosecution Service ,04/01/23,Overseas Residential accommodation,Intl Liaison Prosecutors,"Foreign, Commonwealth and Development Office",20002510,"9,575.00",
Crown Prosecution Service ,04/01/23,Overseas Residential accommodation,Intl External Funding,"Foreign, Commonwealth and Development Office",20002510,"6,375.00",
Crown Prosecution Service ,04/01/23,FCO platform charges excluding leases,Intl External Funding,"Foreign, Commonwealth and Development Office",20002510,"7,325.00",
Crown Prosecution Service ,04/01/23,Overseas Residential accommodation,Intl External Funding,"Foreign, Commonwealth and Development Office",20002510,"5,575.00",
Crown Prosecution Service ,04/01/23,Overseas Residential accommodation,Intl External Funding,"Foreign, Commonwealth and Development Office",20002510,"5,750.00",
Crown Prosecution Service ,04/01/23,Overseas Residential accommodation,Intl Liaison Prosecutors,"Foreign, Commonwealth and Development Office",20002510,"11,575.00",
Crown Prosecution Service ,04/01/23,FCO platform charges excluding leases,Intl External Funding,"Foreign, Commonwealth and Development Office",20002510,"16,400.00",
Crown Prosecution Service ,04/01/23,Overseas Residential accommodation,Intl Internal Funding,"Foreign, Commonwealth and Development Office",20002510,"7,543.50",
Crown Prosecution Service ,04/01/23,Overseas Residential accommodation,Intl Liaison Prosecutors,"Foreign, Commonwealth and Development Office",20002510,"12,079.11",
Crown Prosecution Service ,04/01/23,Overseas Residential accommodation,Intl External Funding,"Foreign, Commonwealth and Development Office",20002510,"4,600.00",
Crown Prosecution Service ,04/01/23,FCO platform charges excluding leases,Intl Liaison Prosecutors,"Foreign, Commonwealth and Development Office",20002510,"10,286.50",
Crown Prosecution Service ,04/01/23,FCO platform charges excluding leases,Intl External Funding,"Foreign, Commonwealth and Development Office",20002510,"5,125.00",
Crown Prosecution Service ,04/01/23,Internal Training,PF Prosecution College,Lumesse Limited Luton,2023-0016-UK,"60,370.70",Y
Crown Prosecution Service ,04/01/23,Crown Court Very High Cost Cases Full Scheme,North West Complex Casework Unit,Dere Street Barristers,373007 JE4,"33,366.60",Y
Crown Prosecution Service ,04/01/23,Apprenticeship Levy payments Permanent,Other Corporate Admin Payments,HM Revenue and Customs,948PB000021422309,"7,675.08",
Crown Prosecution Service ,04/01/23,Apprenticeship Levy payments Permanent,Other Corporate Programme Payments,HM Revenue and Customs,948PB000021422309,"120,242.92",
Crown Prosecution Service ,04/01/23,Recoverable VAT control,Balance Sheet,Ernst & Young LLP London,GB01G000361946,"5,600.00",Y
Crown Prosecution Service ,04/01/23,External Training,DID Security and Information,Ernst & Young LLP London,GB01G000361946,"28,000.00",
Crown Prosecution Service ,04/01/23,Crown Court Graduated Fee Scheme,London North Complex Casework Unit,3 Raymond Buildings,HD/249639,"51,797.40",Y
Crown Prosecution Service ,04/01/23,Crown Court Graduated Fee Scheme,London North Complex Casework Unit,3 Raymond Buildings,LPE/249639/4,"26,413.20",Y
Crown Prosecution Service ,04/01/23,Crown Court Graduated Fee Scheme,London North Complex Casework Unit,3 Raymond Buildings,WEJ/251642,"87,197.40",Y
Crown Prosecution Service ,05/01/23,IT non capital software licences,Legal Reference and ICT Licenses,Trustmarque Solutions Ltd,2354711,"58,330.36",
Crown Prosecution Service ,05/01/23,Recoverable VAT control,Balance Sheet,Trustmarque Solutions Ltd,2354711,"11,666.07",Y
Crown Prosecution Service ,06/01/23,Crown Court Very High Cost Cases Full Scheme,East Midlands Complex Casework Unit,36 Bedford Row,215623-JEC Stage 2,"36,104.00",Y
Crown Prosecution Service ,09/01/23,Crown Court Graduated Fee Scheme,London North Complex Casework Unit,Furnival Chambers,172349 JDS ,"43,603.20",Y
Crown Prosecution Service ,09/01/23,Crown Court Graduated Fee Scheme,London North Complex Casework Unit,Furnival Chambers,174774 CCA ,"25,495.50",Y
Crown Prosecution Service ,09/01/23,Other Staff Costs,DID Security and Information,Cabinet Office RM Shared Services,3824716,"72,834.62",Y
Crown Prosecution Service ,09/01/23,Crown Court Graduated Fee Scheme,East of England Complex Casework Unit,5 King's Bench Walk,DRE175007.Trial,"42,373.44",Y
Crown Prosecution Service ,09/01/23,Crown Court Graduated Fee Scheme,East of England Complex Casework Unit,5 King's Bench Walk,SW175007.Trial,"27,377.64",Y
Crown Prosecution Service ,10/01/23,Crown Court Graduated Fee Scheme,Yorkshire and Humberside Complex Casework Unit,Park Square Barristers (No 6 and Sovereign merged),497789/AJP/TRL2,"38,517.60",Y
Crown Prosecution Service ,10/01/23,Crown Court Graduated Fee Scheme,Yorkshire and Humberside Complex Casework Unit,Park Square Barristers (No 6 and Sovereign merged),498527/KMKC/TRL2,"75,310.20",Y
Crown Prosecution Service ,11/01/23,Crown Court Graduated Fee Scheme,North East Crown Court Unit,Trinity Chambers,0000007273,"26,139.90",Y
Crown Prosecution Service ,11/01/23,Crown Court Graduated Fee Scheme,East of England Crown Court,Drystone Chambers (Dyers),200854,"33,787.25",Y
Crown Prosecution Service ,11/01/23,External legal advice - Civil litigation,Other Corporate Programme Payments,Government Legal Department,519383,"124,604.66",Y
Crown Prosecution Service ,11/01/23,IT non capital equipment and consumables,DTS Programme Project Cost,ACS Systems UK Limited Northampton,INV425039,"191,939.40",Y
Crown Prosecution Service ,11/01/23,General Professional Services,Strategy and Policy,Reed Talent Solutions London,R41034348M,"93,366.44",Y
Crown Prosecution Service ,13/01/23,Crown Court Graduated Fee Scheme,RWD Midlands Wales Unit,36 Bedford Row,214343/DW2,"64,219.69",Y
Crown Prosecution Service ,13/01/23,IT non capital equipment and consumables,DTS Programme Project Cost,ACS Systems UK Limited Northampton,INV425624,"576,180.00",Y
Crown Prosecution Service ,13/01/23,IT non capital equipment and consumables,DTS Programme Project Cost,ACS Systems UK Limited Northampton,INV425719,"58,589.66",Y
Crown Prosecution Service ,13/01/23,General Professional Services,Strategy and Policy,Reed Talent Solutions London,R41040589M,"94,493.04",Y
Crown Prosecution Service ,16/01/23,Right of use asset clearing Buildings,Balance Sheet,Government Property Agency London,00000001/21776,"55,776.49",Y
Crown Prosecution Service ,16/01/23,Right of use asset clearing Buildings,Balance Sheet,Government Property Agency London,00000001/21778,"27,106.13",Y
Crown Prosecution Service ,16/01/23,Right of use asset clearing Buildings,Balance Sheet,Government Property Agency London,00000001/21781,"371,047.63",Y
Crown Prosecution Service ,16/01/23,Crown Court Graduated Fee Scheme,London North Crown Court Unit,Foundry Chambers (9-12 Bell Yard),191094/AH - 1,"40,131.41",Y
Crown Prosecution Service ,16/01/23,Crown Court Graduated Fee Scheme,London North Crown Court Unit,Foundry Chambers (9-12 Bell Yard),191094/AH - 2,"36,308.89",Y
Crown Prosecution Service ,16/01/23,Crown Court Graduated Fee Scheme,London North Crown Court Unit,23 Essex Street Chambers,193107-STR-TRIAL,"30,348.00",Y
Crown Prosecution Service ,16/01/23,Crown Court Graduated Fee Scheme,East Midlands Crown Court Section,36 Bedford Row,196813/JJH,"30,577.50",Y
Crown Prosecution Service ,16/01/23,Crown Court Graduated Fee Scheme,East Midlands Crown Court Section,Drystone Chambers (Dyers),200577,"33,531.00",Y
Crown Prosecution Service ,16/01/23,Crown Court Graduated Fee Scheme,South West Crown Court: North,23 Essex Street Chambers,200914-EM,"38,273.52",Y
Crown Prosecution Service ,16/01/23,Crown Court Graduated Fee Scheme,East Midlands Crown Court Section,36 Bedford Row,215941/JSC,"49,151.40",Y
Crown Prosecution Service ,16/01/23,Crown Court Graduated Fee Scheme,East Midlands Crown Court Section,36 Bedford Row,215941/PP,"25,010.40",Y
Crown Prosecution Service ,16/01/23,Crown Court Graduated Fee Scheme,East Midlands Complex Casework Unit,36 Bedford Row,216643/DT/TP,"35,648.29",Y
Crown Prosecution Service ,16/01/23,Crown Court Graduated Fee Scheme,East Midlands Complex Casework Unit,36 Bedford Row,216643/NJM,"50,400.48",Y
Crown Prosecution Service ,16/01/23,Crown Court Graduated Fee Scheme,East Midlands Complex Casework Unit,1 High Pavement Chambers,277164,"25,469.70",Y
Crown Prosecution Service ,16/01/23,Crown Court Very High Cost Cases Full Scheme,North West Complex Casework Unit,Dere Street Barristers,373007 JE5,"33,159.60",Y
Crown Prosecution Service ,16/01/23,IT services,Other IT costs,Lumen Technologies UK Ltd,624022517/1122299,"51,727.82",Y
Crown Prosecution Service ,16/01/23,Crown Court Graduated Fee Scheme,South East Crown Court,15 New Bridge Street,673561-NMR 4,"32,646.18",Y
Crown Prosecution Service ,16/01/23,Short term leases from 2 to 12 months: IT and Equipment,Print Contract,Xerox (UK) Ltd,900225156,"21,850.00",
Crown Prosecution Service ,16/01/23,Recoverable VAT control,Balance Sheet,Xerox (UK) Ltd,900225156,"4,370.00",Y
Crown Prosecution Service ,16/01/23,Crown Court Graduated Fee Scheme,West Midlands Complex Casework Unit,6 Kings Bench Walk- Chambers of D Fisher & D Perry,99246 DEN,"52,351.80",Y
Crown Prosecution Service ,16/01/23,Crown Court Graduated Fee Scheme,London North Complex Casework Unit,QEB Hollis Whiteman Chambers,AK 107619 E,"26,450.70",Y
Crown Prosecution Service ,16/01/23,Crown Court Graduated Fee Scheme,London North Complex Casework Unit,QEB Hollis Whiteman Chambers,CA 107619 E,"52,911.30",Y
Crown Prosecution Service ,16/01/23,IT services,DTS Programme Project Cost,CGI IT UK Ltd,GB014096390,"127,144.03",Y
Crown Prosecution Service ,16/01/23,IT services,DTS Programme Project Cost,CGI IT UK Ltd,GB014096408,"26,224.16",Y
Crown Prosecution Service ,16/01/23,Recoverable VAT control,Balance Sheet,FlyForm LTD Cardiff,INV-11165,"4,879.21",Y
Crown Prosecution Service ,16/01/23,IT services,DTS Programme Project Cost,FlyForm LTD Cardiff,INV-11165,"24,395.99",
Crown Prosecution Service ,16/01/23,Other managed/contractor services,DTS Programme Project Cost,Equal Experts London,INV-11712,"70,146.00",Y
Crown Prosecution Service ,16/01/23,IT services,DTS Programme Project Cost,eSynergy Solutions Ltd,INV00000971,"42,450.00",Y
Crown Prosecution Service ,16/01/23,IT services,DTS Programme Project Cost,eSynergy Solutions Ltd,INV00000973,"70,480.50",Y
Crown Prosecution Service ,16/01/23,IT services,DTS Programme Project Cost,eSynergy Solutions Ltd,INV00000974,"39,300.00",Y
Crown Prosecution Service ,16/01/23,IT services,DTS Programme Project Cost,eSynergy Solutions Ltd,INV00000975,"29,070.00",Y
Crown Prosecution Service ,16/01/23,IT services,DTS Programme Project Cost,eSynergy Solutions Ltd,INV00000976,"104,788.58",Y
Crown Prosecution Service ,16/01/23,Crown Court Graduated Fee Scheme,London North Complex Casework Unit,QEB Hollis Whiteman Chambers,KB 110196 A,"29,881.20",Y
Crown Prosecution Service ,16/01/23,Crown Court Graduated Fee Scheme,London North Complex Casework Unit,QEB Hollis Whiteman Chambers,NC 110196 A,"64,101.00",Y
Crown Prosecution Service ,17/01/23,Recoverable VAT control,Balance Sheet,HM Treasury,45090,"9,448.65",Y
Crown Prosecution Service ,17/01/23,Shared services,Other Corporate Admin Payments,HM Treasury,45090,"47,243.25",
Crown Prosecution Service ,17/01/23,Crown Court Graduated Fee Scheme,London North Complex Casework Unit,5 King's Bench Walk,AOKC 173135 2,"27,042.00",Y
Crown Prosecution Service ,17/01/23,Crown Court Graduated Fee Scheme,RWD North Unit,5 King's Bench Walk,BHO 175576,"34,117.80",Y
Crown Prosecution Service ,17/01/23,Crown Court Graduated Fee Scheme,London North Complex Casework Unit,5 King's Bench Walk,CF 174603,"37,202.40",Y
Crown Prosecution Service ,17/01/23,Crown Court Graduated Fee Scheme,London South Complex Casework Unit,5 King's Bench Walk,JB 176793,"34,080.60",Y
Crown Prosecution Service ,18/01/23,Crown Court Graduated Fee Scheme,London North Complex Casework Unit,6 Kings Bench Walk- Chambers of D Fisher & D Perry,102586 SAW,"28,389.00",Y
Crown Prosecution Service ,18/01/23,Crown Court Graduated Fee Scheme,London North Crown Court Unit,Foundry Chambers (9-12 Bell Yard),191094/ADS - 1,"37,341.60",Y
Crown Prosecution Service ,18/01/23,Crown Court Graduated Fee Scheme,North East Crown Court Unit,New Park Court Chambers Leeds,367064/SBKC,"37,527.48",Y
Crown Prosecution Service ,18/01/23,External legal advice - HR casework,PF Litigation,Government Legal Department,521577,"27,983.58",Y
Crown Prosecution Service ,18/01/23,Recoverable VAT control,Balance Sheet,Lumen Technologies UK Ltd,624025863/1123471,"7,798.43",Y
Crown Prosecution Service ,18/01/23,IT services,PSN Connectivity Contract,Lumen Technologies UK Ltd,624025863/1123471,"38,992.16",
Crown Prosecution Service ,18/01/23,IT services,DTS Programme Project Cost,Lumen Technologies UK Ltd,624363310/1125809,"100,899.45",Y
Crown Prosecution Service ,18/01/23,IT services,DTS Programme Project Cost,Lumen Technologies UK Ltd,624363311/1125810,"74,828.55",Y
Crown Prosecution Service ,18/01/23,IT services,Estate and FM: Programme,Lumen Technologies UK Ltd,624363311/1125810,"10,134.64",Y
Crown Prosecution Service ,18/01/23,Recoverable VAT control,Balance Sheet,Xerox (UK) Ltd,900225293,"22,414.27",Y
Crown Prosecution Service ,18/01/23,Printing Costs,Print Contract,Xerox (UK) Ltd,900225293,"112,071.33",
Crown Prosecution Service ,18/01/23,UK Hotels,CFO Finance Operations,Clarity Travel Management,CPSHQ150123,133.00,Y
Crown Prosecution Service ,18/01/23,UK Hotels,DID DTS Change,Clarity Travel Management,CPSHQ150123,"1,274.56",Y
Crown Prosecution Service ,18/01/23,UK Hotels,Permanent Transfer Costs,Clarity Travel Management,CPSHQ150123,633.30,Y
Crown Prosecution Service ,18/01/23,Overseas Hotels,Private Office,Clarity Travel Management,CPSHQ150123,"1,798.00",Y
Crown Prosecution Service ,18/01/23,UK Hotels,PF Resourcing,Clarity Travel Management,CPSHQ150123,740.03,Y
Crown Prosecution Service ,18/01/23,UK Hotels,Operational Business Support,Clarity Travel Management,CPSHQ150123,117.45,Y
Crown Prosecution Service ,18/01/23,UK Hotels,Operational Change,Clarity Travel Management,CPSHQ150123,"1,310.18",Y
Crown Prosecution Service ,18/01/23,UK Hotels,Central Operational Training,Clarity Travel Management,CPSHQ150123,627.26,Y
Crown Prosecution Service ,18/01/23,UK Hotels,CFO Commercial,Clarity Travel Management,CPSHQ150123,"1,194.90",Y
Crown Prosecution Service ,18/01/23,UK Hotels,Operational Performance,Clarity Travel Management,CPSHQ150123,187.00,Y
Crown Prosecution Service ,18/01/23,UK Hotels,PF Learning and Development General,Clarity Travel Management,CPSHQ150123,97.01,Y
Crown Prosecution Service ,18/01/23,UK Hotels,Compliance and Assurance,Clarity Travel Management,CPSHQ150123,144.00,Y
Crown Prosecution Service ,18/01/23,UK Hotels,DID DTS Technology,Clarity Travel Management,CPSHQ150123,"2,088.96",Y
Crown Prosecution Service ,18/01/23,UK Hotels,Central Legal Training Team,Clarity Travel Management,CPSHQ150123,270.41,Y
Crown Prosecution Service ,18/01/23,UK Hotels,Director of Legal Services,Clarity Travel Management,CPSHQ150123,285.00,Y
Crown Prosecution Service ,18/01/23,UK Hotels,PF HR Operations,Clarity Travel Management,CPSHQ150123,242.80,Y
Crown Prosecution Service ,18/01/23,UK Hotels,PF People and Business Change,Clarity Travel Management,CPSHQ150123,106.90,Y
Crown Prosecution Service ,18/01/23,UK Hotels,DTUS,Clarity Travel Management,CPSHQ150123,92.10,Y
Crown Prosecution Service ,18/01/23,UK Hotels,Strategy and Policy,Clarity Travel Management,CPSHQ150123,604.40,Y
Crown Prosecution Service ,18/01/23,UK Hotels,Court Business Unit,Clarity Travel Management,CPSHQ150123,330.50,Y
Crown Prosecution Service ,18/01/23,UK Hotels,Corporate Communication,Clarity Travel Management,CPSHQ150123,144.00,Y
Crown Prosecution Service ,18/01/23,UK Hotels,DID Central Leadership Team,Clarity Travel Management,CPSHQ150123,108.78,Y
Crown Prosecution Service ,18/01/23,UK National rail travel,Director of Legal Services,Clarity Travel Management,CPSHQ150123,"1,039.20",
Crown Prosecution Service ,18/01/23,UK National rail travel,PF HR Business Partnering,Clarity Travel Management,CPSHQ150123,"1,180.00",
Crown Prosecution Service ,18/01/23,UK National rail travel,CFO Strategic Financial Planning,Clarity Travel Management,CPSHQ150123,4.80,
Crown Prosecution Service ,18/01/23,UK National rail travel,Press Office,Clarity Travel Management,CPSHQ150123,415.30,
Crown Prosecution Service ,18/01/23,Overseas Air travel,Private Office,Clarity Travel Management,CPSHQ150123,892.16,
Crown Prosecution Service ,18/01/23,UK National rail travel,DID Operational Process,Clarity Travel Management,CPSHQ150123,790.30,
Crown Prosecution Service ,18/01/23,UK National rail travel,Strategy and Policy,Clarity Travel Management,CPSHQ150123,"1,484.20",
Crown Prosecution Service ,18/01/23,UK National rail travel,CFO Finance Operations,Clarity Travel Management,CPSHQ150123,264.40,
Crown Prosecution Service ,18/01/23,UK National rail travel,CFO Estates,Clarity Travel Management,CPSHQ150123,741.70,
Crown Prosecution Service ,18/01/23,UK National rail travel,DID Central Leadership Team,Clarity Travel Management,CPSHQ150123,808.40,
Crown Prosecution Service ,18/01/23,UK National rail travel,PF People and Business Change,Clarity Travel Management,CPSHQ150123,"1,643.90",
Crown Prosecution Service ,18/01/23,UK National rail travel,PF HR Systems and Information,Clarity Travel Management,CPSHQ150123,74.50,
Crown Prosecution Service ,18/01/23,UK National rail travel,PF Analytics and Workforce Plan,Clarity Travel Management,CPSHQ150123,78.60,
Crown Prosecution Service ,18/01/23,UK National rail travel,Chief Finance Officer,Clarity Travel Management,CPSHQ150123,"1,384.90",
Crown Prosecution Service ,18/01/23,UK National rail travel,Private Office,Clarity Travel Management,CPSHQ150123,144.70,
Crown Prosecution Service ,18/01/23,UK National rail travel,CFO Commercial,Clarity Travel Management,CPSHQ150123,288.45,
Crown Prosecution Service ,18/01/23,UK National rail travel,DID DTS Technology,Clarity Travel Management,CPSHQ150123,"1,639.60",
Crown Prosecution Service ,18/01/23,UK National rail travel,Permanent Transfer Costs,Clarity Travel Management,CPSHQ150123,410.60,
Crown Prosecution Service ,18/01/23,UK National rail travel,PF HR Business Management,Clarity Travel Management,CPSHQ150123,96.50,
Crown Prosecution Service ,18/01/23,UK National rail travel,Court Business Unit,Clarity Travel Management,CPSHQ150123,369.10,
Crown Prosecution Service ,18/01/23,UK National rail travel,DID Security and Information,Clarity Travel Management,CPSHQ150123,"1,114.80",
Crown Prosecution Service ,18/01/23,UK National rail travel,PF Resourcing,Clarity Travel Management,CPSHQ150123,"1,797.50",
Crown Prosecution Service ,18/01/23,UK National rail travel,CFO Financial Reporting,Clarity Travel Management,CPSHQ150123,89.90,
Crown Prosecution Service ,18/01/23,UK National rail travel,Operational Change,Clarity Travel Management,CPSHQ150123,"1,798.10",
Crown Prosecution Service ,18/01/23,UK National rail travel,PF HR Operations,Clarity Travel Management,CPSHQ150123,"1,083.40",
Crown Prosecution Service ,18/01/23,UK National rail travel,PF People and Business Change,Clarity Travel Management,CPSHQ150123,96.50,
Crown Prosecution Service ,18/01/23,UK National rail travel,Operational Performance,Clarity Travel Management,CPSHQ150123,257.60,
Crown Prosecution Service ,18/01/23,UK National rail travel,Central Operational Training,Clarity Travel Management,CPSHQ150123,607.30,
Crown Prosecution Service ,18/01/23,UK National rail travel,Compliance and Assurance,Clarity Travel Management,CPSHQ150123,"2,762.90",
Crown Prosecution Service ,18/01/23,UK National rail travel,Corporate Communication,Clarity Travel Management,CPSHQ150123,477.70,
Crown Prosecution Service ,18/01/23,UK National rail travel,PF Learning and Development General,Clarity Travel Management,CPSHQ150123,17.40,
Crown Prosecution Service ,18/01/23,UK National rail travel,Operational Business Support,Clarity Travel Management,CPSHQ150123,"1,843.50",
Crown Prosecution Service ,18/01/23,UK National rail travel,Central Legal Training Team,Clarity Travel Management,CPSHQ150123,904.30,
Crown Prosecution Service ,18/01/23,UK National rail travel,DID DTS Change,Clarity Travel Management,CPSHQ150123,"3,502.80",
Crown Prosecution Service ,19/01/23,Crown Court Graduated Fee Scheme,Counter Terrorism Unit: Internal Funding,Foundry Chambers (9-12 Bell Yard),198445/JM,"30,778.20",Y
Crown Prosecution Service ,19/01/23,Recoverable VAT control,Balance Sheet,Trustmarque Solutions Ltd,2355566,"7,775.66",Y
Crown Prosecution Service ,19/01/23,IT non capital software licences,Legal Reference and ICT Licenses,Trustmarque Solutions Ltd,2355566,"38,878.28",
Crown Prosecution Service ,19/01/23,Recoverable VAT control,Balance Sheet,CDW Limited London,PSINV03824765,"16,112.00",Y
Crown Prosecution Service ,19/01/23,IT non capital software licences,Legal Reference and ICT Licenses,CDW Limited London,PSINV03824765,"80,560.00",
Crown Prosecution Service ,20/01/23,Recoverable VAT control,Balance Sheet,Oracle Corporation UK Ltd,460067166,"4,909.44",Y
Crown Prosecution Service ,20/01/23,IT non capital software licences,Legal Reference and ICT Licenses,Oracle Corporation UK Ltd,460067166,"24,547.18",
Crown Prosecution Service ,20/01/23,Crown Court Graduated Fee Scheme,SEOC Team 2,9 Park Place Chambers,jhkc,"35,742.84",Y
Crown Prosecution Service ,23/01/23,Advice/PreSending Very High Cost Cases Full Scheme,Mersey Cheshire Complex Casework Unit,Harrington Street Chambers,1096572/NJS36,"37,789.44",Y
Crown Prosecution Service ,23/01/23,Crown Court Graduated Fee Scheme,London North Crown Court Unit,Nine Bedford Row (9 Bedford Row),145125dhi,"32,333.40",Y
Crown Prosecution Service ,23/01/23,IT non capital software licences,Legal Reference and ICT Licenses,AutomatePro Ltd London,578,"103,420.80",Y
Crown Prosecution Service ,23/01/23,Crown Court Graduated Fee Scheme,West Midlands Complex Casework Unit,6 Kings Bench Walk- Chambers of D Fisher & D Perry,99496 TB3,"30,729.00",Y
Crown Prosecution Service ,23/01/23,IT services,DTS Programme Project Cost,CGI IT UK Ltd,GB014097372,"103,207.97",Y
Crown Prosecution Service ,23/01/23,Recoverable VAT control,Balance Sheet,CGI IT UK Ltd,GB014097475,"206,085.69",Y
Crown Prosecution Service ,23/01/23,IT services,Apps and Hosting Contract,CGI IT UK Ltd,GB014097475,"1,030,428.46",
Crown Prosecution Service ,23/01/23,Recoverable VAT control,Balance Sheet,CGI IT UK Ltd,GB014097530,"17,676.52",Y
Crown Prosecution Service ,23/01/23,IT services,Service Desk Contract,CGI IT UK Ltd,GB014097530,"88,382.59",
Crown Prosecution Service ,23/01/23,Crown Court Graduated Fee Scheme,Thames Chiltern Crown Court Unit,Seven Bedford Row,meadows,"75,900.60",Y
Crown Prosecution Service ,24/01/23,Crown Court Graduated Fee Scheme,London North Complex Casework Unit,23 Essex Street Chambers,194661-KL,"48,677.40",Y
Crown Prosecution Service ,24/01/23,Crown Court Graduated Fee Scheme,Wessex Crown Court Unit,Devon Chambers,401481JM Paper B,"29,309.40",Y
Crown Prosecution Service ,24/01/23,Conference Organisation,PF HR Business Management,Calder Communications Ltd Leeds,470282,"35,049.98",Y
Crown Prosecution Service ,24/01/23,Crown Court Very High Cost Cases Full Scheme,Cymru Wales South East Crown Court,30 Park Place Chambers,626564-6/FT,"26,255.60",
Crown Prosecution Service ,25/01/23,Property management fees,Estate and FM: Programme,Government Property Agency London,00000001/18742,"15,090.54",Y
Crown Prosecution Service ,25/01/23,Lease liability non current lease payments,Balance Sheet,Government Property Agency London,00000001/18742,"156,900.00",
Crown Prosecution Service ,25/01/23,Landlord service charge,Estate and FM: Programme,Government Property Agency London,00000001/18742,"44,189.59",
Crown Prosecution Service ,25/01/23,National non domestic rates,Estate and FM: Programme,Government Property Agency London,00000001/18742,"60,137.02",
Crown Prosecution Service ,25/01/23,Property management fees,Estate and FM: Programme,Government Property Agency London,00000001/20313,"15,090.54",Y
Crown Prosecution Service ,25/01/23,National non domestic rates,Estate and FM: Programme,Government Property Agency London,00000001/20313,"104,326.61",
Crown Prosecution Service ,25/01/23,Lease liability non current lease payments,Balance Sheet,Government Property Agency London,00000001/20313,"156,900.00",
Crown Prosecution Service ,25/01/23,Property management fees,Estate and FM: Programme,Government Property Agency London,00000001/22699,"15,090.54",Y
Crown Prosecution Service ,25/01/23,National non domestic rates,Estate and FM: Programme,Government Property Agency London,00000001/22699,"60,137.02",
Crown Prosecution Service ,25/01/23,Lease liability non current lease payments,Balance Sheet,Government Property Agency London,00000001/22699,"156,900.00",
Crown Prosecution Service ,25/01/23,Landlord service charge,Estate and FM: Programme,Government Property Agency London,00000001/22699,"44,189.59",
Crown Prosecution Service ,25/01/23,External legal advice - Civil litigation,Other Corporate Programme Payments,Government Legal Department,520345,"87,610.76",Y
Crown Prosecution Service ,26/01/23,General Professional Services,IAP Conference,Bray Leino Ltd Devon,13415BLE,"29,043.12",Y
Crown Prosecution Service ,26/01/23,Crown Court Graduated Fee Scheme,Thames and Chiltern Complex Casework Unit,23 Essex Street Chambers,181111-JAP-trial,"44,256.72",Y
Crown Prosecution Service ,26/01/23,Recoverable VAT control,Balance Sheet,Cabinet Office RM Shared Services,3825333,"3,960.00",Y
Crown Prosecution Service ,26/01/23,Other Staff Costs,PF Operational HR Costs,Cabinet Office RM Shared Services,3825333,"3,864.00",Y
Crown Prosecution Service ,26/01/23,External Training,PF Operational HR Costs,Cabinet Office RM Shared Services,3825333,"19,800.00",
Crown Prosecution Service ,26/01/23,Other publicity and media costs,CCD Business Centre,Linkedin Dublin,78111465269,"3,170.48",
Crown Prosecution Service ,26/01/23,Other publicity and media costs,Strategy and Policy,Linkedin Dublin,78111465269,923.34,
Crown Prosecution Service ,26/01/23,Other publicity and media costs,RWD Management Team,Linkedin Dublin,78111465269,"1,116.08",
Crown Prosecution Service ,26/01/23,Recruitment general costs,Proceeds of Crime Management Team,Linkedin Dublin,78111465269,552.35,
Crown Prosecution Service ,26/01/23,Other publicity and media costs,PF Operational HR Costs,Linkedin Dublin,78111465269,"26,028.61",
Crown Prosecution Service ,26/01/23,Other publicity and media costs,CPS Direct Business Centre,Linkedin Dublin,78111465269,"1,500.00",
Crown Prosecution Service ,26/01/23,Other publicity and media costs,PF Resourcing,Linkedin Dublin,78111465269,"1,964.70",
Crown Prosecution Service ,26/01/23,UK Hotels,Chief Finance Officer,Clarity Travel Management,CPSHQ220123,189.21,Y
Crown Prosecution Service ,26/01/23,UK National rail travel,PF Learning and Development General,Clarity Travel Management,CPSHQ220123,"1,636.40",
Crown Prosecution Service ,26/01/23,UK Hotels,DID Security and Information,Clarity Travel Management,CPSHQ220123,444.00,Y
Crown Prosecution Service ,26/01/23,UK Hotels,DID DTS Technology,Clarity Travel Management,CPSHQ220123,878.26,Y
Crown Prosecution Service ,26/01/23,UK Hotels,PF HR Business Management,Clarity Travel Management,CPSHQ220123,272.46,Y
Crown Prosecution Service ,26/01/23,UK Hotels,Operational Change,Clarity Travel Management,CPSHQ220123,386.40,Y
Crown Prosecution Service ,26/01/23,UK Hotels,CFO Estates,Clarity Travel Management,CPSHQ220123,"1,554.05",Y
Crown Prosecution Service ,26/01/23,UK Hotels,DID Central Leadership Team,Clarity Travel Management,CPSHQ220123,426.15,Y
Crown Prosecution Service ,26/01/23,UK Hotels,PF People and Business Change,Clarity Travel Management,CPSHQ220123,236.01,Y
Crown Prosecution Service ,26/01/23,UK Hotels,DID DTS Change,Clarity Travel Management,CPSHQ220123,"1,065.69",Y
Crown Prosecution Service ,26/01/23,UK Hotels,CFO Commercial,Clarity Travel Management,CPSHQ220123,741.50,Y
Crown Prosecution Service ,26/01/23,UK Hotels,Compliance and Assurance,Clarity Travel Management,CPSHQ220123,"2,970.09",Y
Crown Prosecution Service ,26/01/23,UK Hotels,Permanent Transfer Costs,Clarity Travel Management,CPSHQ220123,554.01,Y
Crown Prosecution Service ,26/01/23,UK Hotels,CFO Strategic Financial Planning,Clarity Travel Management,CPSHQ220123,417.00,Y
Crown Prosecution Service ,26/01/23,UK Hotels,Operational Business Support,Clarity Travel Management,CPSHQ220123,118.00,Y
Crown Prosecution Service ,26/01/23,UK Hotels,Director of Legal Services,Clarity Travel Management,CPSHQ220123,432.00,Y
Crown Prosecution Service ,26/01/23,UK Hotels,PF Learning and Development General,Clarity Travel Management,CPSHQ220123,78.00,Y
Crown Prosecution Service ,26/01/23,UK Hotels,CFO Finance Operations,Clarity Travel Management,CPSHQ220123,133.00,Y
Crown Prosecution Service ,26/01/23,UK Hotels,PF HR Business Partnering,Clarity Travel Management,CPSHQ220123,74.10,Y
Crown Prosecution Service ,26/01/23,UK Hotels,Strategy and Policy,Clarity Travel Management,CPSHQ220123,545.71,Y
Crown Prosecution Service ,26/01/23,UK Hotels,Private Office,Clarity Travel Management,CPSHQ220123,"1,290.57",Y
Crown Prosecution Service ,26/01/23,UK Hotels,Central Operational Training,Clarity Travel Management,CPSHQ220123,77.01,Y
Crown Prosecution Service ,26/01/23,UK National rail travel,PF Employee Relations,Clarity Travel Management,CPSHQ220123,98.00,
Crown Prosecution Service ,26/01/23,UK National rail travel,PF HR Systems and Information,Clarity Travel Management,CPSHQ220123,648.70,
Crown Prosecution Service ,26/01/23,UK National rail travel,Central Legal Training Team,Clarity Travel Management,CPSHQ220123,546.30,
Crown Prosecution Service ,26/01/23,UK National rail travel,DID DTS Change,Clarity Travel Management,CPSHQ220123,"2,067.30",
Crown Prosecution Service ,26/01/23,UK National rail travel,DID Operational Process,Clarity Travel Management,CPSHQ220123,410.50,
Crown Prosecution Service ,26/01/23,UK National rail travel,DID Central Leadership Team,Clarity Travel Management,CPSHQ220123,908.80,
Crown Prosecution Service ,26/01/23,UK National rail travel,Chief Finance Officer,Clarity Travel Management,CPSHQ220123,326.20,
Crown Prosecution Service ,26/01/23,UK National rail travel,DID DTS Technology,Clarity Travel Management,CPSHQ220123,"1,309.30",
Crown Prosecution Service ,26/01/23,UK National rail travel,Permanent Transfer Costs,Clarity Travel Management,CPSHQ220123,461.50,
Crown Prosecution Service ,26/01/23,UK National rail travel,PF Analytics and Workforce Plan,Clarity Travel Management,CPSHQ220123,612.80,
Crown Prosecution Service ,26/01/23,UK National rail travel,CFO Fin System Change and Costings,Clarity Travel Management,CPSHQ220123,960.40,
Crown Prosecution Service ,26/01/23,UK National rail travel,PF HR Business Partnering,Clarity Travel Management,CPSHQ220123,838.50,
Crown Prosecution Service ,26/01/23,UK National rail travel,Press Office,Clarity Travel Management,CPSHQ220123,82.00,
Crown Prosecution Service ,26/01/23,UK National rail travel,CFO Estates,Clarity Travel Management,CPSHQ220123,28.10,
Crown Prosecution Service ,26/01/23,UK National rail travel,Director of Legal Services,Clarity Travel Management,CPSHQ220123,435.10,
Crown Prosecution Service ,26/01/23,UK National rail travel,DID Security and Information,Clarity Travel Management,CPSHQ220123,"1,633.90",
Crown Prosecution Service ,26/01/23,UK National rail travel,Central Operational Training,Clarity Travel Management,CPSHQ220123,198.50,
Crown Prosecution Service ,26/01/23,UK National rail travel,Operational Performance,Clarity Travel Management,CPSHQ220123,173.50,
Crown Prosecution Service ,26/01/23,UK National rail travel,CFO Finance Operations,Clarity Travel Management,CPSHQ220123,279.90,
Crown Prosecution Service ,26/01/23,UK National rail travel,Operational Business Support,Clarity Travel Management,CPSHQ220123,277.70,
Crown Prosecution Service ,26/01/23,UK National rail travel,Corporate Communication,Clarity Travel Management,CPSHQ220123,"1,164.00",
Crown Prosecution Service ,26/01/23,UK National rail travel,Strategy and Policy,Clarity Travel Management,CPSHQ220123,872.30,
Crown Prosecution Service ,26/01/23,UK National rail travel,PF HR Operations,Clarity Travel Management,CPSHQ220123,"1,248.60",
Crown Prosecution Service ,26/01/23,UK National rail travel,Private Office,Clarity Travel Management,CPSHQ220123,152.50,
Crown Prosecution Service ,26/01/23,UK National rail travel,Compliance and Assurance,Clarity Travel Management,CPSHQ220123,56.90,
Crown Prosecution Service ,26/01/23,UK National rail travel,PF People and Business Change,Clarity Travel Management,CPSHQ220123,801.25,
Crown Prosecution Service ,26/01/23,UK National rail travel,CFO Strategic Financial Planning,Clarity Travel Management,CPSHQ220123,347.10,
Crown Prosecution Service ,26/01/23,UK National rail travel,Operational Change,Clarity Travel Management,CPSHQ220123,"1,142.30",
Crown Prosecution Service ,26/01/23,UK National rail travel,PF HR Business Management,Clarity Travel Management,CPSHQ220123,419.70,
Crown Prosecution Service ,26/01/23,UK National rail travel,PF Resourcing,Clarity Travel Management,CPSHQ220123,926.90,
Crown Prosecution Service ,27/01/23,Crown Court Graduated Fee Scheme,South East Complex Casework Unit,6 Kings Bench Walk- Chambers of D Fisher & D Perry,102953 BL,"34,328.64",Y
Crown Prosecution Service ,27/01/23,Crown Court Graduated Fee Scheme,South East Complex Casework Unit,6 Kings Bench Walk- Chambers of D Fisher & D Perry,102953 DAT,"55,720.22",Y
Crown Prosecution Service ,27/01/23,Crown Court Graduated Fee Scheme,West Midlands Complex Casework Unit,6 Kings Bench Walk- Chambers of D Fisher & D Perry,103831 DEN,"29,680.78",Y
Crown Prosecution Service ,27/01/23,Crown Court Graduated Fee Scheme,West Midlands Crown Court Unit,No 5 Fountain Court Chambers,823785/HSS/,"29,623.80",Y
Crown Prosecution Service ,27/01/23,Crown Court Graduated Fee Scheme,Thames Chiltern Crown Court Unit,4 Breams Buildings,STKC 324011 26/1,"25,534.20",Y
Crown Prosecution Service ,30/01/23,Recoverable VAT control,Balance Sheet,Government Property Agency London,00000001/22493,"31,459.46",Y
Crown Prosecution Service ,30/01/23,Facilities management,Estate and FM: Programme,Government Property Agency London,00000001/22493,"157,297.30",
Crown Prosecution Service ,30/01/23,Crown Court Graduated Fee Scheme,Counter Terrorism Unit: Internal Funding,6 Kings Bench Walk- Chambers of D Fisher & D Perry,103146 DAR,"38,647.46",Y
Crown Prosecution Service ,30/01/23,Telephony mobile phones and dongles,Intl External Funding,"Foreign, Commonwealth and Development Office",20002672,14.40,
Crown Prosecution Service ,30/01/23,Telephony mobile phones and dongles,Intl Liaison Prosecutors,"Foreign, Commonwealth and Development Office",20002672,90.23,
Crown Prosecution Service ,30/01/23,Office equipment and furniture Non capital purchases,Intl Liaison Prosecutors,"Foreign, Commonwealth and Development Office",20002672,498.70,
Crown Prosecution Service ,30/01/23,Non casework interpreter and translation costs,Intl Liaison Prosecutors,"Foreign, Commonwealth and Development Office",20002672,792.77,
Crown Prosecution Service ,30/01/23,Overseas Education School Fees: FCO approved schools,Intl Liaison Prosecutors,"Foreign, Commonwealth and Development Office",20002672,878.21,
Crown Prosecution Service ,30/01/23,Conference Organisation,Intl Liaison Prosecutors,"Foreign, Commonwealth and Development Office",20002672,969.15,
Crown Prosecution Service ,30/01/23,Salaries Overseas locally employed Admin,Intl Liaison Prosecutors,"Foreign, Commonwealth and Development Office",20002672,"5,087.63",
Crown Prosecution Service ,30/01/23,Salaries Overseas locally employed Admin,Intl Liaison Prosecutors,"Foreign, Commonwealth and Development Office",20002672,"10,003.05",
Crown Prosecution Service ,30/01/23,Salaries Overseas locally employed Admin,Intl Liaison Prosecutors,"Foreign, Commonwealth and Development Office",20002672,"27,154.20",
Crown Prosecution Service ,30/01/23,Telephony mobile phones and dongles,Intl Liaison Prosecutors,"Foreign, Commonwealth and Development Office",20002672,15.82,
Crown Prosecution Service ,30/01/23,Telephony mobile phones and dongles,Intl Liaison Prosecutors,"Foreign, Commonwealth and Development Office",20002971,19.95,
Crown Prosecution Service ,30/01/23,Telephony mobile phones and dongles,Intl Liaison Prosecutors,"Foreign, Commonwealth and Development Office",20002971,34.83,
Crown Prosecution Service ,30/01/23,Telephony mobile phones and dongles,Intl Liaison Prosecutors,"Foreign, Commonwealth and Development Office",20002971,82.29,
Crown Prosecution Service ,30/01/23,Overseas Education School Fees: FCO approved schools,Intl Liaison Prosecutors,"Foreign, Commonwealth and Development Office",20002971,"6,539.90",
Crown Prosecution Service ,30/01/23,Overseas Education School Fees: FCO approved schools,Intl Liaison Prosecutors,"Foreign, Commonwealth and Development Office",20002971,"45,957.51",
Crown Prosecution Service ,30/01/23,Crown Court Graduated Fee Scheme,London North Complex Casework Unit,3 Raymond Buildings,251641/WEJ,"26,119.80",Y
Crown Prosecution Service ,30/01/23,Recoverable VAT control,Balance Sheet,WIPRO Holdings London,5000199398,"21,325.30",Y
Crown Prosecution Service ,30/01/23,IT services,End User Computing Contract,WIPRO Holdings London,5000199398,"106,626.50",
Crown Prosecution Service ,30/01/23,Crown Court Graduated Fee Scheme,SEOC Team 2,6 Kings Bench Walk- Chambers of D Fisher & D Perry,98484 LO,"27,595.44",Y
Crown Prosecution Service ,30/01/23,Recoverable VAT control,Balance Sheet,Konica Minolta Business Solutions Limited,Bulk202204,"11,031.89",Y
Crown Prosecution Service ,30/01/23,Variable lease payment expenses IT and Equipment,Print Contract,Konica Minolta Business Solutions Limited,Bulk202204,"55,159.43",
Crown Prosecution Service ,30/01/23,Crown Court Graduated Fee Scheme,London North Complex Casework Unit,Deka Chambers Ltd,TL364498D,"25,554.00",Y
Crown Prosecution Service ,31/01/23,Crown Court Graduated Fee Scheme,Wessex Crown Court Unit,12 College Place,124473rab2,"26,248.20",Y
Crown Prosecution Service ,31/01/23,Crown Court Very High Cost Cases Full Scheme,RWD North Unit,Foundry Chambers (9-12 Bell Yard),198502/JWA,"59,559.30",Y
Crown Prosecution Service ,31/01/23,Crown Court Graduated Fee Scheme,Yorks and Humbs CC Legal,Park Square Barristers (No 6 and Sovereign merged),517231/PMKC/TRL,"58,149.00",Y
Crown Prosecution Service ,31/01/23,Crown Court Graduated Fee Scheme,Yorks and Humbs CC Legal,Park Square Barristers (No 6 and Sovereign merged),518349/KC/TRL,"29,072.40",Y
